[Event "DVM U12W 2021"]
[Site "Willingen"]
[Date "2022.08.13"]
[Round "2"]
[White "Engeln, Helene"]
[Black "Ramien, Eva"]
[Result "1-0"]
[ECO "C54"]
[WhiteElo "956"]
[BlackElo "929"]
[Annotator "NA RC COMBH"]
[PlyCount "97"]
[EventDate "2022.08.12"]
[EventType "team-tourn"]
[EventRounds "7"]
[EventCountry "GER"]
[SourceTitle "playchess.com"]
[Source "ChessBase"]
[SourceQuality "1"]
[TimeControl "40/5400+30:1800+30"]

1. e4 {[%emt 0:00:01]} e5 {[%emt 0:00:11]} 2. Nf3 {[%emt 0:00:06]} Nc6 {[%emt 0:00:06]} 3. Bc4 {[%emt 0:00:04]} Bc5 {[%emt 0:00:09]} 4. c3 {[%emt 0:00:04]} Nf6 {[%emt 0:00:09]} 5. d4 {[%emt 0:00:04]} exd4 {[%emt 0:00:08]} 6. cxd4 {[%emt 0:00:04]} Bb4+ {[%emt 0:00:13]} 7. Nc3 {[%emt 0:00:09]} Nxe4 {[%emt 0:00:43]} 8. O-O {[%emt 0:00:09]} Bxc3 {[%emt 0:00:08]} 9. bxc3 {[%emt 0:00:07]} d5 {[%emt 0:00:14]} 10. Bd3 {[%emt 0:00:31]} Nf6 {[%emt 0:00:45]} 11. Re1+ {[%emt 0:00:18]} Be6 {[%emt 0:00:23]} 12. Ng5 {[%emt 0:00:40]} O-O {[%emt 0:02:03]} 13. Nxh7 {[%emt 0:04:21]} Nxh7 {[%emt 0:00:55]} 14. Bxh7+ {[%emt 0:01:23]} Kxh7 {[%emt 0:02:41]} 15. Qh5+ {[%emt 0:00:00]} Kg8 {[%emt 0:00:09]} 16. Bg5 {[%emt 0:00:36]} Qd6 {[%emt 0:03:17]} 17. Re3 {[%emt 0:02:34]} Bf5 {[%emt 0:01:58]} 18. g4 {[%emt 0:00:50]} Qg6 {[%emt 0:02:31]} 19. Qh4 {[%emt 0:00:31]} Qh7 {[%emt 0:01:31]} 20. gxf5 {[%emt 0:00:56]} Qxh4 {[%emt 0:00:24]} 21. Bxh4 {[%emt 0:00:25]} f6 {[%emt 0:00:16]} 22. Bg3 {[%emt 0:03:02]} Rac8 {[%emt 0:01:11]} 23. Rb1 {[%emt 0:04:26]} Na5 {[%emt 0:01:05]} 24. Rb5 {[%emt 0:02:08]} b6 {[%emt 0:01:00]} 25. Rxd5 {[%emt 0:00:18]} Nc4 {[%emt 0:00:29]} 26. Re7 {[%emt 0:01:23]} Rfe8 {[%emt 0:00:52]} 27. Rxe8+ {[%emt 0:01:51]} Rxe8 {[%emt 0:00:12]} 28. Bxc7 {[%emt 0:00:04]} Re1+ {[%emt 0:00:53]} 29. Kg2 {[%emt 0:00:07]} Re2 {[%emt 0:01:10]} 30. Rd8+ {[%emt 0:00:48]} Kf7 {[%emt 0:00:29]} 31. d5 {[%emt 0:02:21]} Ke7 {[%emt 0:00:39]} 32. Rg8 {[%emt 0:01:33]} Rxa2 {[%emt 0:02:44]} 33. Rxg7+ {[%emt 0:03:48]} Kf8 {[%emt 0:00:00]} 34. Rg3 {[%emt 0:01:09]} Rd2 {[%emt 0:00:00]} 35. Bd8 {[%emt 0:01:15]} a5 {[%emt 0:00:00]} 36. Bxf6 {[%emt 0:01:05]} a4 {[%emt 0:00:05]} 37. Bg7+ {[%emt 0:00:15]} Kf7 {[%emt 0:00:06]} 38. Bd4 {[%emt 0:01:52]} a3 {[%emt 0:00:15]} 39. Rg7+ {[%emt 0:00:07]} Ke8 {[%emt 0:00:44]} 40. f6 {[%emt 0:01:59]} a2 {[%emt 0:00:10]} 41. Rg8+ {[%emt 0:32:17]} Kf7 {[%emt 0:30:17]} 42. Rg7+ {[%emt 0:00:18]} Kf8 {[%emt 0:00:11]} 43. Ra7 {[%emt 0:00:48]} Na5 {[%emt 0:02:22]} 44. Ra8+ {[%emt 0:02:39]} Kf7 {[%emt 0:00:00]} 45. Ra7+ {[%emt 0:01:12]} Kg6 {[%emt 0:00:00]} 46. Rg7+ {[%emt 0:00:22]} Kf5 {[%emt 0:00:00]} 47. f7 {[%emt 0:01:12]} a1=Q {[%emt 0:01:03]} 48. f8=Q+ {[%emt 0:00:06]} Ke4 {[%emt 0:00:14]} 49. Qf3# {[%emt 0:01:09]} 1-0

[Event "DVM U12W 2021"]
[Site "Willingen"]
[Date "2022.08.13"]
[Round "2"]
[White "Doberchak, Emily Alice"]
[Black "Greive, Greta"]
[Result "0-1"]
[ECO "C50"]
[WhiteElo "928"]
[BlackElo "1136"]
[Annotator "NA RC COMBH"]
[PlyCount "118"]
[EventDate "2022.08.12"]
[EventType "team-tourn"]
[EventRounds "7"]
[EventCountry "GER"]
[SourceTitle "playchess.com"]
[Source "ChessBase"]
[SourceQuality "1"]
[TimeControl "40/5400+30:1800+30"]

1. e4 {[%emt 0:00:03]} e5 {[%emt 0:00:04]} 2. Nf3 {[%emt 0:00:16]} Nc6 {[%emt 0:00:17]} 3. Bc4 {[%emt 0:00:19]} Bc5 {[%emt 0:00:15]} 4. O-O {[%emt 0:00:38]} d6 {[%emt 0:00:42]} 5. d3 {[%emt 0:00:16]} Bg4 {[%emt 0:00:23]} 6. Nc3 {[%emt 0:01:59]} Nd4 {[%emt 0:01:15]} 7. Bg5 {[%emt 0:01:04]} f6 {[%emt 0:00:49]} 8. Be3 {[%emt 0:00:25]} Nxf3+ {[%emt 0:01:02]} 9. Kh1 {[%emt 0:01:20]} Qd7 {[%emt 0:01:44]} 10. Bxc5 {[%emt 0:00:47]} dxc5 {[%emt 0:00:18]} 11. Bb5 {[%emt 0:01:01]} c6 {[%emt 0:00:10]} 12. Bc4 {[%emt 0:00:22]} Nd4 {[%emt 0:00:40]} 13. Qd2 {[%emt 0:00:36]} Ne7 {[%emt 0:01:48]} 14. Nd1 {[%emt 0:02:43]} Nf3 {[%emt 0:01:39]} 15. Qe3 {[%emt 0:00:37]} Nd4 {[%emt 0:01:05]} 16. Qg3 {[%emt 0:01:09]} Ng6 {[%emt 0:01:39]} 17. Ne3 {[%emt 0:00:16]} Be6 {[%emt 0:00:22]} 18. Bxe6 {[%emt 0:00:16]} Qxe6 {[%emt 0:01:26]} 19. c3 {[%emt 0:00:58]} Nb5 {[%emt 0:02:52]} 20. c4 {[%emt 0:00:21]} Nd6 {[%emt 0:01:31]} 21. a3 {[%emt 0:01:53]} Nf7 {[%emt 0:05:21]} 22. b4 {[%emt 0:00:31]} cxb4 {[%emt 0:01:49]} 23. axb4 {[%emt 0:00:19]} Qd7 {[%emt 0:01:53]} 24. b5 {[%emt 0:01:43]} cxb5 {[%emt 0:00:20]} 25. cxb5 {[%emt 0:00:54]} Qxb5 {[%emt 0:00:13]} 26. Rfd1 {[%emt 0:00:20]} Nf4 {[%emt 0:00:39]} 27. Rab1 {[%emt 0:00:31]} Qd7 {[%emt 0:01:35]} 28. Nc4 {[%emt 0:00:51]} O-O {[%emt 0:02:37]} 29. Rd2 {[%emt 0:01:27]} b5 {[%emt 0:00:32]} 30. Na3 {[%emt 0:00:47]} a6 {[%emt 0:02:12]} 31. Rbd1 {[%emt 0:01:16]} Qe7 {[%emt 0:00:21]} 32. Nc2 {[%emt 0:00:54]} Rfc8 {[%emt 0:00:50]} 33. Ne1 {[%emt 0:00:54]} Rc7 {[%emt 0:05:11]} 34. Nf3 {[%emt 0:00:53]} Rac8 {[%emt 0:00:32]} 35. Re1 {[%emt 0:01:16]} Rc1 {[%emt 0:00:33]} 36. Rdd1 {[%emt 0:00:18]} Rxd1 {[%emt 0:00:15]} 37. Rxd1 {[%emt 0:00:21]} Qa3 {[%emt 0:00:57]} 38. Ne1 {[%emt 0:00:14]} Rc1 {[%emt 0:01:03]} 39. Rxc1 {[%emt 0:00:27]} Qxc1 {[%emt 0:00:24]} 40. f3 {[%emt 0:00:09]} Ne2 {[%emt 0:00:54]} 41. Qf2 {[%emt 0:30:42]} Nf4 {[%emt 0:31:07]} 42. h3 {[%emt 0:02:29]} Nxd3 {[%emt 0:00:52]} 43. Qg1 {[%emt 0:00:29]} Qxe1 {[%emt 0:00:33]} 44. Qxe1 {[%emt 0:01:14]} Nxe1 {[%emt 0:00:08]} 45. Kg1 {[%emt 0:00:07]} b4 {[%emt 0:00:26]} 46. Kf1 {[%emt 0:00:18]} Nc2 {[%emt 0:00:12]} 47. Ke2 {[%emt 0:00:11]} a5 {[%emt 0:00:22]} 48. Kd2 {[%emt 0:00:07]} b3 {[%emt 0:00:12]} 49. Kc1 {[%emt 0:00:05]} a4 {[%emt 0:00:20]} 50. Kb2 {[%emt 0:00:11]} Nd6 {[%emt 0:00:53]} 51. Kb1 {[%emt 0:00:16]} Kf8 {[%emt 0:00:43]} 52. g4 {[%emt 0:00:34]} Ke7 {[%emt 0:00:15]} 53. h4 {[%emt 0:00:09]} Kd7 {[%emt 0:00:11]} 54. h5 {[%emt 0:00:34]} Kc6 {[%emt 0:00:07]} 55. Kb2 {[%emt 0:00:31]} Nc4+ {[%emt 0:00:17]} 56. Kb1 {[%emt 0:00:20]} Kb5 {[%emt 0:00:12]} 57. Kc1 {[%emt 0:00:15]} a3 {[%emt 0:00:16]} 58. Kb1 {[%emt 0:00:12]} a2+ {[%emt 0:00:28]} 59. Kc1 {[%emt 0:00:04]} a1=Q# {[%emt 0:00:20]} 0-1

[Event "DVM U12W 2021"]
[Site "Willingen"]
[Date "2022.08.13"]
[Round "2"]
[White "Daaboul, Dima"]
[Black "Guliyeva, Zahra"]
[Result "0-1"]
[ECO "C47"]
[WhiteElo "882"]
[BlackElo "834"]
[Annotator "NA RC COMBH"]
[PlyCount "40"]
[EventDate "2022.08.12"]
[EventType "team-tourn"]
[EventRounds "7"]
[EventCountry "GER"]
[SourceTitle "playchess.com"]
[Source "ChessBase"]
[SourceQuality "1"]
[TimeControl "40/5400+30:1800+30"]

1. e4 {[%emt 0:00:06]} e5 {[%emt 0:00:00]} 2. Nf3 {[%emt 0:00:09]} Nc6 {[%emt 0:00:00]} 3. d4 {[%emt 0:03:09]} Nf6 {[%emt 0:02:06]} 4. Nc3 {[%emt 0:02:32]} Ng4 {[%emt 0:01:01]} 5. Bc4 {[%emt 0:00:35]} Bb4 {[%emt 0:01:18]} 6. Ng5 {[%emt 0:03:29]} O-O {[%emt 0:00:14]} 7. Qxg4 {[%emt 0:00:40]} exd4 {[%emt 0:02:01]} 8. Qf5 {[%emt 0:00:24]} g6 {[%emt 0:00:12]} 9. Qh3 {[%emt 0:00:44]} h5 {[%emt 0:01:53]} 10. Rb1 {[%emt 0:00:21]} dxc3 {[%emt 0:02:59]} 11. bxc3 {[%emt 0:00:26]} d6 {[%emt 0:00:53]} 12. Qh4 {[%emt 0:00:29]} Bc5 {[%emt 0:01:43]} 13. g4 {[%emt 0:00:34]} Bxg4 {[%emt 0:01:48]} 14. Rg1 {[%emt 0:00:52]} Ne5 {[%emt 0:09:55]} 15. Kf1 {[%emt 0:00:45]} Qf6 {[%emt 0:07:24]} 16. Bd2 {[%emt 0:01:59]} Nxc4 {[%emt 0:00:31]} 17. Nf3 {[%emt 0:00:50]} Nxd2+ {[%emt 0:00:52]} 18. Ke1 {[%emt 0:00:45]} Nxf3+ {[%emt 0:02:04]} 19. Kf1 {[%emt 0:00:13]} Nxh4 {[%emt 0:02:12]} 20. Ke1 Qxf2# {[%emt 0:01:39]} 0-1

[Event "DVM U12W 2021"]
[Site "Willingen"]
[Date "2022.08.13"]
[Round "2"]
[White "Mauhs, Helena"]
[Black "Fruth, Julia"]
[Result "0-1"]
[ECO "B50"]
[WhiteElo "857"]
[BlackElo "1037"]
[Annotator "NA RC COMBH"]
[PlyCount "78"]
[EventDate "2022.08.12"]
[EventType "team-tourn"]
[EventRounds "7"]
[EventCountry "GER"]
[SourceTitle "playchess.com"]
[Source "ChessBase"]
[SourceQuality "1"]
[TimeControl "40/5400+30:1800+30"]

1. e4 {[%emt 0:00:04]} c5 {[%emt 0:00:05]} 2. Bc4 {[%emt 0:00:11]} d6 {[%emt 0:00:05]} 3. Nf3 {[%emt 0:00:24]} Nf6 {[%emt 0:00:10]} 4. Nc3 {[%emt 0:00:10]} a6 {[%emt 0:00:13]} 5. Bb3 {[%emt 0:00:46]} e6 {[%emt 0:00:42]} 6. d4 {[%emt 0:00:17]} Nbd7 {[%emt 0:00:19]} 7. e5 {[%emt 0:01:03]} dxe5 {[%emt 0:05:04]} 8. dxe5 {[%emt 0:00:36]} Ng4 {[%emt 0:01:12]} 9. h3 {[%emt 0:00:55]} Ngxe5 {[%emt 0:00:11]} 10. Bf4 {[%emt 0:00:36]} Nc6 {[%emt 0:01:31]} 11. Qe2 {[%emt 0:02:16]} Be7 {[%emt 0:01:12]} 12. O-O-O {[%emt 0:01:04]} O-O {[%emt 0:01:05]} 13. Qe4 {[%emt 0:01:53]} Ra7 {[%emt 0:08:32]} 14. h4 {[%emt 0:01:02]} Na5 {[%emt 0:00:53]} 15. Bg5 {[%emt 0:01:01]} h6 {[%emt 0:00:59]} 16. Rd3 {[%emt 0:02:35]} b5 {[%emt 0:02:22]} 17. Re3 {[%emt 0:01:37]} c4 {[%emt 0:01:41]} 18. Nd4 {[%emt 0:01:49]} cxb3 {[%emt 0:01:24]} 19. axb3 {[%emt 0:00:46]} Bb7 {[%emt 0:02:39]} 20. Qd3 {[%emt 0:00:25]} Bxg2 {[%emt 0:05:16]} 21. Rh2 {[%emt 0:00:48]} Bxg5 {[%emt 0:06:32]} 22. hxg5 {[%emt 0:00:32]} Qxg5 {[%emt 0:00:21]} 23. Kb1 {[%emt 0:01:03]} Be4 {[%emt 0:06:19]} 24. Qxe4 {[%emt 0:02:34]} Qg1+ {[%emt 0:00:26]} 25. Ka2 {[%emt 0:01:08]} Qxh2 {[%emt 0:00:52]} 26. b4 {[%emt 0:01:02]} Nc4 {[%emt 0:03:32]} 27. Rg3 {[%emt 0:01:05]} a5 {[%emt 0:02:37]} 28. Qg4 {[%emt 0:00:55]} axb4+ {[%emt 0:00:47]} 29. Kb3 {[%emt 0:00:18]} g6 {[%emt 0:03:43]} 30. Nxe6 {[%emt 0:00:31]} Nde5 {[%emt 0:06:58]} 31. Qf4 {[%emt 0:01:39]} Qh1 {[%emt 0:04:00]} 32. Qf6 {[%emt 0:01:27]} fxe6 {[%emt 0:00:53]} 33. Qxe6+ {[%emt 0:00:32]} Kg7 {[%emt 0:02:05]} 34. Qh3 {[%emt 0:02:30]} bxc3 {[%emt 0:02:34]} 35. Qxh1 {[%emt 0:00:31]} cxb2 {[%emt 0:02:23]} 36. Rh3 {[%emt 0:00:37]} Ra3+ {[%emt 0:00:57]} 37. Kb4 {[%emt 0:00:15]} Rxh3 {[%emt 0:00:34]} 38. Qb7+ {[%emt 0:00:48]} Kh8 {[%emt 0:00:49]} 39. Qg2 {[%emt 0:00:53]} b1=Q+ {[%emt 0:00:03]} 0-1

[Event "DVM U12W 2021"]
[Site "Willingen"]
[Date "2022.08.13"]
[Round "2"]
[White "Reetz, Shaila"]
[Black "Yan, Jenny"]
[Result "0-1"]
[ECO "B30"]
[WhiteElo "837"]
[BlackElo "984"]
[Annotator "NA RC COMBH"]
[PlyCount "72"]
[EventDate "2022.08.12"]
[EventType "team-tourn"]
[EventRounds "7"]
[EventCountry "GER"]
[SourceTitle "playchess.com"]
[Source "ChessBase"]
[SourceQuality "1"]
[TimeControl "40/5400+30:1800+30"]

1. e4 {[%emt 0:00:04]} c5 {[%emt 0:00:05]} 2. Nf3 {[%emt 0:00:50]} Nc6 {[%emt 0:00:35]} 3. Bc4 {[%emt 0:00:09]} e6 {[%emt 0:00:19]} 4. O-O {[%emt 0:00:12]} d5 {[%emt 0:00:36]} 5. Bb5 {[%emt 0:00:25]} Bd7 {[%emt 0:00:28]} 6. d3 {[%emt 0:00:15]} Nf6 {[%emt 0:01:23]} 7. Bg5 {[%emt 0:00:10]} Be7 {[%emt 0:00:17]} 8. Nc3 {[%emt 0:00:07]} a6 {[%emt 0:01:10]} 9. Ba4 {[%emt 0:00:14]} b5 {[%emt 0:00:46]} 10. Bb3 {[%emt 0:00:11]} c4 {[%emt 0:00:49]} 11. Bxf6 {[%emt 0:01:23]} Bxf6 {[%emt 0:00:12]} 12. dxc4 {[%emt 0:00:43]} dxc4 {[%emt 0:00:10]} 13. Ne2 {[%emt 0:01:22]} cxb3 {[%emt 0:00:32]} 14. axb3 {[%emt 0:00:12]} Bxb2 {[%emt 0:00:16]} 15. Ra2 {[%emt 0:00:33]} Bf6 {[%emt 0:01:06]} 16. Ng3 {[%emt 0:00:13]} O-O {[%emt 0:00:28]} 17. c4 {[%emt 0:00:50]} e5 {[%emt 0:01:33]} 18. cxb5 {[%emt 0:00:45]} axb5 {[%emt 0:00:17]} 19. Rxa8 {[%emt 0:00:25]} Qxa8 {[%emt 0:00:05]} 20. Qxd7 {[%emt 0:00:19]} Rd8 {[%emt 0:00:50]} 21. Qg4 {[%emt 0:00:28]} Qa2 {[%emt 0:00:29]} 22. Nh5 {[%emt 0:00:25]} Kf8 {[%emt 0:02:07]} 23. Nxf6 {[%emt 0:00:21]} gxf6 {[%emt 0:00:05]} 24. Qh4 {[%emt 0:00:34]} Qxb3 {[%emt 0:01:10]} 25. Qh6+ {[%emt 0:00:29]} Ke7 {[%emt 0:00:40]} 26. Qxh7 {[%emt 0:00:39]} Rd1 {[%emt 0:00:37]} 27. h3 {[%emt 0:00:29]} Rxf1+ {[%emt 0:00:14]} 28. Kxf1 {[%emt 0:00:11]} Qd1+ {[%emt 0:00:24]} 29. Ne1 {[%emt 0:00:14]} Nd4 {[%emt 0:00:33]} 30. g3 {[%emt 0:00:46]} Nc2 {[%emt 0:00:09]} 31. h4 {[%emt 0:00:15]} Qxe1+ {[%emt 0:00:11]} 32. Kg2 {[%emt 0:00:11]} b4 {[%emt 0:00:21]} 33. h5 {[%emt 0:00:22]} b3 {[%emt 0:00:05]} 34. h6 {[%emt 0:00:07]} b2 {[%emt 0:00:03]} 35. Qg7 {[%emt 0:01:00]} b1=Q {[%emt 0:00:07]} 36. h7 {[%emt 0:00:18]} Qh1# {[%emt 0:00:11]} 0-1

[Event "DVM U12W 2021"]
[Site "Willingen"]
[Date "2022.08.13"]
[Round "2"]
[White "Blome, Antonia"]
[Black "Bykov, Sophia"]
[Result "1-0"]
[ECO "D00"]
[WhiteElo "823"]
[BlackElo "896"]
[Annotator "NA RC COMBH"]
[PlyCount "36"]
[EventDate "2022.08.12"]
[EventType "team-tourn"]
[EventRounds "7"]
[EventCountry "GER"]
[SourceTitle "playchess.com"]
[Source "ChessBase"]
[SourceQuality "1"]
[TimeControl "40/5400+30:1800+30"]

1. d4 {[%emt 0:00:07]} d5 {[%emt 0:00:00]} 2. Bf4 {[%emt 0:00:15]} Nc6 {[%emt 0:00:00]} 3. e3 {[%emt 0:00:10]} Nf6 {[%emt 0:00:04]} 4. h3 {[%emt 0:00:06]} e6 {[%emt 0:00:09]} 5. Nf3 {[%emt 0:00:38]} Bb4+ {[%emt 0:00:07]} 6. c3 {[%emt 0:00:05]} Ba5 {[%emt 0:00:30]} 7. b4 {[%emt 0:00:07]} Bb6 {[%emt 0:00:34]} 8. Ne5 {[%emt 0:00:28]} O-O {[%emt 0:00:47]} 9. Be2 {[%emt 0:00:35]} a5 {[%emt 0:00:47]} 10. b5 {[%emt 0:00:51]} Ne7 {[%emt 0:00:56]} 11. Nd2 {[%emt 0:00:13]} c6 {[%emt 0:01:01]} 12. bxc6 {[%emt 0:00:07]} bxc6 {[%emt 0:00:37]} 13. O-O {[%emt 0:00:48]} Ba6 {[%emt 0:00:59]} 14. c4 {[%emt 0:00:32]} Ne4 {[%emt 0:01:28]} 15. Nxe4 {[%emt 0:00:07]} dxe4 {[%emt 0:01:44]} 16. Bh5 {[%emt 0:00:34]} f6 {[%emt 0:02:34]} 17. Ng4 {[%emt 0:00:32]} Bxc4 {[%emt 0:00:41]} 18. Re1 {[%emt 0:00:16]} Nf5 1-0

[Event "DVM U12W 2021"]
[Site "Willingen"]
[Date "2022.08.13"]
[Round "2"]
[White "Borck, Elena"]
[Black "Belkina, Elisabeth"]
[Result "0-1"]
[ECO "D10"]
[WhiteElo "739"]
[BlackElo "1126"]
[Annotator "NA RC COMBH"]
[PlyCount "40"]
[EventDate "2022.08.12"]
[EventType "team-tourn"]
[EventRounds "7"]
[EventCountry "GER"]
[SourceTitle "playchess.com"]
[Source "ChessBase"]
[SourceQuality "1"]
[TimeControl "40/5400+30:1800+30"]

1. c4 {[%emt 0:00:08]} c6 {[%emt 0:00:00]} 2. Nc3 {[%emt 0:00:43]} d5 {[%emt 0:02:15]} 3. cxd5 {[%emt 0:00:10]} cxd5 {[%emt 0:01:16]} 4. d4 {[%emt 0:00:25]} Bf5 {[%emt 0:01:30]} 5. g3 {[%emt 0:00:12]} e6 {[%emt 0:00:43]} 6. Bg2 {[%emt 0:00:54]} Nc6 {[%emt 0:00:51]} 7. e3 {[%emt 0:01:01]} Nf6 {[%emt 0:00:58]} 8. Nge2 {[%emt 0:01:32]} Be7 {[%emt 0:03:10]} 9. O-O {[%emt 0:00:10]} O-O {[%emt 0:02:05]} 10. b3 {[%emt 0:02:48]} Nb4 {[%emt 0:04:10]} 11. Bb2 {[%emt 0:13:59]} Rc8 {[%emt 0:04:34]} 12. Rc1 {[%emt 0:09:33]} Nd3 {[%emt 0:02:48]} 13. Rb1 {[%emt 0:02:25]} Nxb2 {[%emt 0:00:19]} 14. Rxb2 {[%emt 0:06:02]} Ba3 {[%emt 0:08:17]} 15. Rd2 {[%emt 0:02:07]} Bb4 {[%emt 0:05:13]} 16. Qa1 {[%emt 0:06:24]} Qa5 {[%emt 0:02:09]} 17. Rc1 {[%emt 0:05:10]} Rc6 {[%emt 0:07:44]} 18. Rdd1 {[%emt 0:03:10]} Ba3 {[%emt 0:09:32]} 19. Rb1 {[%emt 0:00:44]} Bxb1 {[%emt 0:00:31]} 20. Rxb1 {[%emt 0:01:19]} Rfc8 0-1

[Event "DVM U12W 2021"]
[Site "Willingen"]
[Date "2022.08.14"]
[Round "3"]
[White "Wagner, Cosima Thien-An"]
[Black "Mersmann, Jasmin"]
[Result "1-0"]
[ECO "C54"]
[WhiteElo "1301"]
[BlackElo "1232"]
[Annotator "NA RC"]
[PlyCount "69"]
[EventDate "2022.08.12"]
[EventType "team-tourn"]
[EventRounds "7"]
[EventCountry "GER"]
[SourceTitle "playchess.com"]
[Source "ChessBase"]
[SourceQuality "1"]
[TimeControl "40/5400+30:1800+30"]

1. e4 {[%emt 0:00:01]} e5 {[%emt 0:00:06]} 2. Nf3 {[%emt 0:00:03]} Nc6 {[%emt 0:00:04]} 3. Bc4 {[%emt 0:00:04]} Bc5 {[%emt 0:00:19]} 4. c3 {[%emt 0:00:04]} Nf6 {[%emt 0:00:12]} 5. d4 {[%emt 0:00:07]} exd4 {[%emt 0:00:15]} 6. e5 {[%emt 0:00:04]} Ne4 {[%emt 0:01:27]} 7. Bd5 {[%emt 0:01:00]} f5 {[%emt 0:00:50]} 8. cxd4 {[%emt 0:01:12]} Bb4+ {[%emt 0:02:08]} 9. Nbd2 {[%emt 0:00:02]} Nxd2 {[%emt 0:00:40]} 10. Bxd2 {[%emt 0:00:06]} Bxd2+ {[%emt 0:00:09]} 11. Qxd2 {[%emt 0:00:03]} d6 {[%emt 0:00:38]} 12. Qc2 {[%emt 0:13:24]} Bd7 {[%emt 0:00:48]} 13. e6 {[%emt 0:04:47]} Qe7 {[%emt 0:01:11]} 14. O-O {[%emt 0:03:55]} Bxe6 {[%emt 0:01:11]} 15. Bxe6 {[%emt 0:00:16]} Kd8 {[%emt 0:02:20]} 16. Bxf5 {[%emt 0:05:03]} Qf6 {[%emt 0:01:27]} 17. Rac1 {[%emt 0:07:12]} g6 {[%emt 0:03:27]} 18. Bd3 {[%emt 0:08:54]} Rc8 {[%emt 0:01:09]} 19. Be4 {[%emt 0:05:18]} Nxd4 {[%emt 0:05:35]} 20. Nxd4 {[%emt 0:01:45]} Qxd4 {[%emt 0:00:16]} 21. Bxb7 {[%emt 0:00:22]} Qb6 {[%emt 0:00:34]} 22. Bxc8 {[%emt 0:00:56]} Kxc8 {[%emt 0:00:19]} 23. Qc6 {[%emt 0:01:03]} Qxc6 {[%emt 0:00:14]} 24. Rxc6 {[%emt 0:00:05]} Re8 {[%emt 0:00:09]} 25. Rfc1 {[%emt 0:01:09]} Re2 {[%emt 0:00:16]} 26. Rxc7+ {[%emt 0:00:53]} Kd8 {[%emt 0:00:08]} 27. Rc8+ {[%emt 0:02:18]} Ke7 {[%emt 0:00:12]} 28. R8c2 {[%emt 0:00:14]} Re6 {[%emt 0:00:19]} 29. Kf1 {[%emt 0:00:39]} Kf6 {[%emt 0:00:26]} 30. Re1 {[%emt 0:00:38]} Rxe1+ {[%emt 0:00:14]} 31. Kxe1 {[%emt 0:00:06]} Kf5 {[%emt 0:00:08]} 32. Rc7 {[%emt 0:00:06]} Ke4 {[%emt 0:00:04]} 33. Rxa7 {[%emt 0:00:09]} Kd3 {[%emt 0:00:15]} 34. Rc7 {[%emt 0:00:04]} Kd4 {[%emt 0:00:07]} 35. a4 {[%emt 0:00:11]} 1-0

[Event "DVM U12W 2021"]
[Site "Willingen"]
[Date "2022.08.14"]
[Round "3"]
[White "Goeb, Franziska"]
[Black "Müller, Cosima"]
[Result "1/2-1/2"]
[ECO "B34"]
[WhiteElo "1285"]
[BlackElo "1355"]
[Annotator "NA RC"]
[PlyCount "63"]
[EventDate "2022.08.12"]
[EventType "team-tourn"]
[EventRounds "7"]
[EventCountry "GER"]
[SourceTitle "playchess.com"]
[Source "ChessBase"]
[SourceQuality "1"]
[TimeControl "40/5400+30:1800+30"]

1. e4 {[%emt 0:00:01]} c5 {[%emt 0:00:12]} 2. Nf3 {[%emt 0:00:05]} Nc6 {[%emt 0:00:06]} 3. d4 {[%emt 0:01:06]} cxd4 {[%emt 0:00:06]} 4. Nxd4 {[%emt 0:00:05]} g6 {[%emt 0:00:06]} 5. Be3 {[%emt 0:08:27]} Bg7 {[%emt 0:00:13]} 6. c3 {[%emt 0:01:33]} Nf6 {[%emt 0:01:20]} 7. Nd2 {[%emt 0:01:58]} O-O {[%emt 0:05:12]} 8. Be2 {[%emt 0:07:06]} d5 {[%emt 0:07:40]} 9. exd5 {[%emt 0:11:59]} Nxd5 {[%emt 0:02:46]} 10. Nxc6 {[%emt 0:06:54]} Nxe3 {[%emt 0:01:06]} 11. Nxd8 {[%emt 0:04:11]} Nxd1 {[%emt 0:00:18]} 12. Rxd1 {[%emt 0:00:43]} Rxd8 {[%emt 0:00:17]} 13. O-O {[%emt 0:02:35]} Bf5 {[%emt 0:05:48]} 14. Nf3 {[%emt 0:05:57]} Be6 {[%emt 0:05:19]} 15. c4 {[%emt 0:05:41]} Bf5 {[%emt 0:15:36]} 16. b3 {[%emt 0:06:33]} Bb2 {[%emt 0:03:55]} 17. g3 {[%emt 0:14:22]} Bc2 {[%emt 0:04:40]} 18. Rd2 {[%emt 0:01:57]} Rxd2 {[%emt 0:00:12]} 19. Nxd2 {[%emt 0:00:07]} Rd8 {[%emt 0:00:16]} 20. Nf3 {[%emt 0:00:23]} Rd6 {[%emt 0:00:43]} 21. Re1 {[%emt 0:01:21]} Bf5 {[%emt 0:06:20]} 22. Bf1 {[%emt 0:02:16]} e6 {[%emt 0:02:10]} 23. Nh4 {[%emt 0:01:35]} Bc2 {[%emt 0:01:51]} 24. Re2 {[%emt 0:01:20]} g5 {[%emt 0:09:41]} 25. Rxc2 {[%emt 0:01:45]} Bd4 {[%emt 0:00:48]} 26. Ng2 {[%emt 0:00:50]} Bc5 {[%emt 0:01:23]} 27. Ne3 {[%emt 0:00:52]} f5 {[%emt 0:00:15]} 28. Bg2 {[%emt 0:01:16]} b6 {[%emt 0:01:03]} 29. Rc1 {[%emt 0:01:00]} Rd2 {[%emt 0:01:09]} 30. Rc2 {[%emt 0:00:23]} Bxe3 {[%emt 0:00:13]} 31. Rxd2 {[%emt 0:00:44]} Bxd2 {[%emt 0:00:06]} 32. Kf1 {[%emt 0:00:30]} 1/2-1/2

[Event "DVM U12W 2021"]
[Site "Willingen"]
[Date "2022.08.14"]
[Round "3"]
[White "Leicher, Anna"]
[Black "Shynkar, Darya"]
[Result "1-0"]
[ECO "B28"]
[WhiteElo "1252"]
[BlackElo "1001"]
[Annotator "NA RC"]
[PlyCount "61"]
[EventDate "2022.08.12"]
[EventType "team-tourn"]
[EventRounds "7"]
[EventCountry "GER"]
[SourceTitle "playchess.com"]
[Source "ChessBase"]
[SourceQuality "1"]
[TimeControl "40/5400+30:1800+30"]

1. e4 {[%emt 0:00:01]} c5 {[%emt 0:00:00]} 2. Nf3 {[%emt 0:00:12]} a6 {[%emt 0:06:24]} 3. b3 {[%emt 0:01:26]} Nc6 {[%emt 0:02:50]} 4. Bc4 {[%emt 0:01:44]} e6 {[%emt 0:03:36]} 5. O-O {[%emt 0:00:39]} b5 {[%emt 0:02:47]} 6. Be2 {[%emt 0:04:15]} Nge7 {[%emt 0:02:55]} 7. c3 {[%emt 0:04:51]} Ng6 {[%emt 0:02:00]} 8. d4 {[%emt 0:04:36]} cxd4 {[%emt 0:05:29]} 9. Nxd4 {[%emt 0:00:32]} Bb7 {[%emt 0:03:30]} 10. c4 {[%emt 0:01:01]} bxc4 {[%emt 0:00:42]} 11. Bxc4 {[%emt 0:01:28]} Be7 {[%emt 0:09:11]} 12. Nxc6 {[%emt 0:00:15]} Bxc6 {[%emt 0:03:08]} 13. Qe2 {[%emt 0:00:58]} O-O {[%emt 0:01:52]} 14. Bb2 {[%emt 0:00:06]} Re8 {[%emt 0:01:31]} 15. Bxa6 {[%emt 0:01:05]} Qb6 {[%emt 0:01:25]} 16. Bd3 {[%emt 0:00:59]} Nf4 {[%emt 0:00:53]} 17. Qg4 {[%emt 0:00:18]} Ng6 {[%emt 0:02:48]} 18. Nd2 {[%emt 0:04:04]} Rad8 {[%emt 0:01:31]} 19. Nc4 {[%emt 0:01:41]} Qc7 {[%emt 0:05:03]} 20. f4 {[%emt 0:01:13]} f6 {[%emt 0:02:39]} 21. f5 {[%emt 0:00:42]} exf5 {[%emt 0:00:56]} 22. exf5 {[%emt 0:03:30]} Nf8 {[%emt 0:05:01]} 23. Bc3 {[%emt 0:06:00]} d5 {[%emt 0:01:46]} 24. Ba5 {[%emt 0:01:28]} Qb8 {[%emt 0:00:48]} 25. Bxd8 {[%emt 0:00:07]} Bc5+ {[%emt 0:00:36]} 26. Kh1 {[%emt 0:03:05]} Be7 {[%emt 0:01:17]} 27. Bxe7 {[%emt 0:00:02]} Rxe7 {[%emt 0:03:20]} 28. Rae1 {[%emt 0:00:47]} Rxe1 {[%emt 0:00:33]} 29. Rxe1 {[%emt 0:01:18]} Qa7 {[%emt 0:02:26]} 30. a4 {[%emt 0:01:02]} dxc4 {[%emt 0:00:58]} 31. Qxc4+ {[%emt 1:38:55]} 1-0